Cogmind - Beta 9.6 @@@ ROGUE MODE // 2020.06.09 @ 14:36:14 Player: Zinc Result: Destroyed by G-47 Trooper with Particle Gun Performance ------------- Evolutions (0) 0 Regions Visited (1) 200 Robots Destroyed (12) 60 Value Destroyed (365) 365 Prototype IDs (2) 40 Alien Tech Used (0) 0 Bonus (0) 0 TOTAL SCORE: 665 Bonus ------- None Cogmind --------- Core Integrity 0/250 Matter 257/300 Energy 96/100 System Corruption 0% Temperature Cool (11) Movement Walking (150) Ox1 Location -10/Materials Parts ------- > --- POWER (1) -------- (None) > --- PROPULSION (2) --- Aluminum Leg Aluminum Leg > --- UTILITY (2) ------ Large Storage Unit Large Storage Unit > --- WEAPON (2) ------- Small Laser Assault Rifle > --- INVENTORY (16) --- Ion Engine Wheel Wheel Medium Storage Unit Weapon Shielding Hacking Suite Small Laser Grenade Launcher Peak State ------------ > --- POWER ------------ Ion Engine > --- PROPULSION ------- Aluminum Leg Aluminum Leg > --- UTILITY ---------- Large Storage Unit Large Storage Unit > --- WEAPON ----------- Small Laser Assault Rifle > --- INVENTORY -------- Ion Engine Wheel Wheel Medium Storage Unit Weapon Shielding Hacking Suite Small Laser Grenade Launcher [Rating: 8] Favorites ----------- Power Ion Engine Engine Ion Engine Propulsion Light Treads Treads Light Treads Leg Aluminum Leg Utility Small Storage Unit Storage Small Storage Unit Protection Weapon Shielding Weapon Small Laser Energy Gun Small Laser Ballistic Gun Light Assault Rifle Build | -11 -10 ------- Run | Scr Mat Slots Evolved . | . . Power . | . . Propulsion . | . . Utility . | . . Weapon . | . . Parts Attached 15 | 3 12 Power 2 | . 2 Engine 2 | . 2 Core . | . . Reactor . | . . Propulsion 4 | 2 2 Treads 2 | 2 . Leg 2 | . 2 Wheel . | . . Hover . | . . Flight . | . . Utility 3 | . 3 Device . | . . Storage 2 | . 2 Processor . | . . Hackware . | . . Protection 1 | . 1 Artifact . | . . Weapon 6 | 1 5 Energy Gun 4 | . 4 Energy Cannon . | . . Ballistic Gun 2 | 1 1 Ballistic Cannon . | . . Launcher . | . . Special Weapon . | . . Impact Weapon . | . . Slashing Weapon . | . . Piercing Weapon . | . . Special Melee Weapon . | . . Unidentified Prototypes . | . . Parts Lost 8 | . 8 Power 2 | . 2 Propulsion 2 | . 2 Utility . | . . Weapon 4 | . 4 Highest Loss Streak 3 | . 3 Average Slot Usage (%) 87 | . 87 Engine 13 | . 13 Treads 13 | . 13 Leg 10 | . 10 Storage 15 | . 15 Protection 5 | . 5 Energy Gun 13 | . 13 Ballistic Gun 13 | . 13 Naked Turns . | . . Heaviest Build 40 | 9 40 Greatest Support 40 | 40 40 Greatest Overweight (x) 4 | . 4 Average Overweight (x) . | . . Largest Inventory Capacity 16 | 6 16 Average Capacity 7 | 6 7 Most Carried 8 | 6 8 Average Carried 5 | 3 5 Final Capacity 16 | 6 16 Final Carried 8 | 3 8 Class Distribution -------------------- 100% | Mutant Dominant Class ---------------- Mutant | -10/Materials Resources | -11 -10 ----------- Run | Scr Mat Matter Collected 386 | 198 188 Remotely . | . . Salvage Created 396 | . 396 Parts 23 | . 23 Haulers Intercepted . | . . Recyclers Shooed . | . . Parts Field Recycled . | . . Retrieved Matter . | . . Parts Self-Destructed . | . . Prevented . | . . Kills | -11 -10 ------- Run | Scr Mat Combat Hostiles Destroyed 9 | . 9 Guns 9 | . 9 Classes Destroyed 3 | . 3 Worker 1 | . 1 Operator 2 | . 2 Grunt 9 | . 9 Best Kill Streak 2 | . 2 Combat Bots Only 2 | . 2 Max Kills in Single Turn 1 | . 1 Gunslinging . | . . Exploded . | . . Melee . | . . Uniques/NPCs Destroyed . | . . Combat | -11 -10 -------- Run | Scr Mat Damage Taken 1166 | . 1166 Core 260 | . 260 Absorbed by Shields . | . . Core Remaining (%) 100 | 100 . Volleys Fired 61 | 2 59 Largest 2 | 2 2 Hottest 70 | 60 70 Shots Fired 107 | 4 103 Gun 107 | 4 103 Cannon . | . . Launcher . | . . Special . | . . Kinetic 58 | 2 56 Thermal 34 | 2 32 Explosive . | . . Electromagnetic 15 | . 15 Robot Hit Streak 13 | 2 13 Robot Miss Streak 4 | 1 4 Penetration Max . | . . Secondary Targets 3 | . 3 Max Gunslinging Chain 1 | . 1 Shots Hit Robots 76 | 3 73 Core Hits 27 | 1 26 Critical Hits 1 | . 1 Critical Kills . | . . Critical Parts Destroyed 1 | . 1 Melee Attacks . | . . Impact . | . . Slashing . | . . Piercing . | . . Sneak Attacks . | . . Combat Hostiles . | . . Follow-up Attacks . | . . Damage Inflicted 887 | 34 853 Guns 887 | 34 853 Cannons . | . . Explosions . | . . Melee . | . . Ramming . | . . Kinetic 412 | 12 400 Thermal 341 | 22 319 Explosive . | . . Electromagnetic 134 | . 134 Impact . | . . Slashing . | . . Piercing . | . . Highest Corruption . | . . Average Corruption . | . . Corruption Purged . | . . Overload Shots . | . . Overflow Damage . | . . Projectiles . | . . Explosions . | . . Melee . | . . Knockbacks . | . . Impact . | . . Kinetic . | . . Secondary . | . . Self-Inflicted Damage . | . . Shots . | . . Rammed . | . . Targets Rammed . | . . Kicked . | . . Crushed . | . . Highest Temperature 177 | 20 177 Average Temperature 61 | 15 62 Received Heat Transfer 645 | . 645 Siege Activations . | . . Robots Corrupted . | . . Combat Hostiles . | . . Parts Fried . | . . Impact Corruptions . | . . Robots Melted . | . . Combat Hostiles . | . . Parts Melted 3 | . 3 Heat Transferred 858 | 50 808 Parts Sabotaged . | . . Parts Stolen . | . . Parts Stripped . | . . Power Chain Reactions . | . . Missiles Intercepted . | . . Alert | -11 -10 ------- Run | Scr Mat Peak Influence 160 | . 160 Average Influence 85 | . 86 Maximum Alert Level . | . . Low Security (%) 100 | 100 100 Level 1 . | . . Level 2 . | . . Level 3 . | . . Level 4 . | . . Level 5 . | . . High Security . | . . Max Security . | . . Squads Dispatched 4 | . 4 Investigation 1 | . 1 Extermination . | . . Reinforcement 3 | . 3 Assault . | . . Garrison . | . . Intercept . | . . Construction Impeded . | . . Haulers Reinforced . | . . Stealth | -11 -10 --------- Run | Scr Mat Distress Signals 3 | . 3 Communications Jammed . | . . Distress Signals . | . . Times Spotted 25 | . 25 Peak Tracking Total 6 | . 6 Tactical Retreats 3 | . 3 Traps | -11 -10 ------- Run | Scr Mat Traps Triggered 1 | . 1 Indirectly . | . . Trap Hack Attempts . | . . Triggered . | . . Disarmed . | . . Reprogrammed . | . . Reused . | . . Traps Extracted . | . . Installed . | . . Triggered . | . . Machines | -11 -10 ---------- Run | Scr Mat Machines Disabled . | . . Max in Single Turn . | . . Machines Sabotaged . | . . Garrisons Compromised . | . . Overloaded Fab Kills . | . . Fab Network Shutdowns . | . . Hacking | -11 -10 --------- Run | Scr Mat Machines Accessed 3 | . 3 Terminals 3 | . 3 Fabricators . | . . Repair Stations . | . . Recycling Units . | . . Scanalyzers . | . . Garrison Access . | . . Total Hacks 13 | . 13 Successful 8 | . 8 Failed 5 | . 5 Catastrophic . | . . Database Lockouts . | . . Manual 9 | . 9 Terminals 13 | . 13 Fabricators . | . . Repair Stations . | . . Recycling Units . | . . Scanalyzers . | . . Garrison Access . | . . Terminal Hacks 3 | . 3 Prototype ID Bank 1 | . 1 Alert Level 1 | . 1 Hauler Manifests 1 | . 1 Fabricator Hacks . | . . Repair Station Hacks . | . . Recycling Unit Hacks . | . . Scanalyzer . | . . Garrison Access Hacks . | . . Unauthorized Hacks 5 | . 5 Terminals 5 | . 5 Track 1 | . 1 Botnet 2 | . 2 Disrupt 1 | . 1 Operators 1 | . 1 Fabricators . | . . Repair Stations . | . . Recycling Units . | . . Scanalyzers . | . . Garrison Access . | . . Data Cores Recovered . | . . Used . | . . Hacking Detections 3 | . 3 Full Trace Events 2 | . 2 Feedback Events . | . . Feedback Blocked . | . . Robot Schematics Acquired . | . . Robots Built . | . . Matter . | . . Time . | . . Total Robot Build Rating . | . . Part Schematics Acquired . | . . Parts Built . | . . Matter . | . . Time . | . . Total Part Build Rating . | . . Parts Repaired . | . . Time . | . . Parts Recycled . | . . Recycled Matter . | . . Retrieved Matter . | . . Retrieved Components . | . . Parts Scanalyzed . | . . Part Schematics Acquired . | . . Parts Damaged . | . . Bothacking | -11 -10 ------------ Run | Scr Mat Used RIF Installer . | . . Robots Hacked . | . . Non-combat . | . . Combat . | . . Robot Hacks Applied . | . . Relay Couplers Released . | . . Robots Rewired . | . . Allies Hacked . | . . Hacks Repelled . | . . Allies | -11 -10 -------- Run | Scr Mat Total Allies . | . . Largest Group . | . . Highest-Rated Group . | . . Highest-Rated Ally . | . . Total Orders . | . . Ally Attacks . | . . Total Damage . | . . Kills . | . . Allies Corrupted . | . . Allies Melted . | . . Intel | -11 -10 ------- Run | Scr Mat Robot Analysis Total . | . . Derelict Logs Recovered . | . . Drone Launches . | . . Drone Recoveries . | . . Exploration | -11 -10 ------------- Run | Scr Mat Turns Passed 793 | 11 782 Spaces Moved 403 | 1 402 Core 8 | . 8 Treads 193 | 1 192 Legs 202 | . 202 Wheels . | . . Hover . | . . Flight . | . . Fastest Speed 120 | 160 120 Average Speed 147 | 160 147 Slowest Speed 250 | 160 250 Overloaded Moves . | . . Propulsion Burnouts . | . . Robots Hopped . | . . Cave-ins Triggered . | . . Exploration Rate (%) 30 | 2 59 Regions Visited 1 Branch Regions . Pre-discovered Areas . | . . Known Exits Taken . | . . Unknown Exits Taken 1 | 1 . Scrap Searched . | . . Spaces Dug . | . . Terrain Destroyed . | . . Melee . | . . Projectile . | . . AOE . | . . Actions | -11 -10 --------- Run | Scr Mat Total 500 | 8 492 Wait 9 | . 9 Move 402 | . 402 Hop . | . . Pick Up 7 | . 7 Fast Attach 7 | . 7 Attach 6 | 3 3 Detach . | . . Swap 2 | . 2 Drop 6 | 3 3 Fire 61 | 2 59 Melee . | . . Ram . | . . Kick . | . . Crush . | . . Escape Stasis . | . . Rewire . | . . Trap . | . . Miscellaneous . | . . Route ------- -11/Scrapyard -10/Materials (discovered 2 exits: [*Min x2]) History --------- Turn | Location | Event 12 | -11/Scrapyard | Discovered new exit (range 0) 12 | -11/Scrapyard | Entered Materials 310 | -10/Materials | Build established: Mutant 409 | -10/Materials | Discovered new exit (range 13) 470 | -10/Materials | Lost 3 parts (1n2w) 557 | -10/Materials | Core integrity fell below 50% 744 | -10/Materials | Core integrity fell below 20% 788 | -10/Materials | Discovered new exit (range 16) 794 | -10/Materials | Destroyed by G-47 Trooper with Particle Gun Last Messages --------------- 00699_ Acquired Lrg. Storage Unit. 00702_ Acquired Weapon Shielding. 00704_ Acquired Med. Storage Unit. 00746_ K-01 Serf cleans the Matter Pump. 00747_ G-34 Mercenary destroyed. 00749_ K-01 Serf collects debris. 00751_ W-16 Scout sends out distress signal. 00752_ K-01 Serf collects debris. 00757_ K-01 Serf cleans the Recycling Unit. 00776_ Connecting with Terminal... >>Alert(Check) Current Alert Level: Low Security 00782_ T-07 Excavator destroyed. 00782_ K-01 Serf cleans the Recycling Unit. 00782_ K-01 Serf collects debris. 00786_ K-01 Serf cleans the Recycling Unit. 00786_ K-01 Serf collects debris. 00787_ Ion Engine destroyed. 00788_ EXIT=FOUND 00789_ K-01 Serf collects debris. Map ----- +----------------------------------------------------+ | | | | | ??????????????????????????????????????? | | ??????????????????????????????????????? | | ??????????????????????????????????????? | | ??????????????????????????????????????? | | ??????????????????????????????????????? | | ??????????????????????????????????????? | | ??????????????????????????????????????? | | ??????????????????????????????????????? | | ???????????????????????"""????????????? | | ??????????????????????"|||"???????????? | | ?????????????????????"" "???????????? | | ????????????????????? ???????????? | | ????????????????????? < ???????????? | | ?????????????????????? ???????????? | | ?????????????????????? ???????????? | | ?????????????????????? ???????????? | | ??????????????????????# #???????????? | | ??????????????????????# #???????????? | | ??????????????????????+ +???????????? | | ??????????????????????# #???????????? | | ??????????????????????# #???????????? | | ??????######??????????# #???????????? | | ?????# #??????????# #???????????? | | ?????? #??????????+ @#???????????? | | ?????? ???????????# #???????????? | | ?????? ???????????# #???????????? | | ?????? ???????????# #???????????? | | ??????# #???????????# #???????????? | | ??????# #???????????# ########????? | | ??????# #???????????# # !#????? | | ??????# #???????????# # #????? | | ??????# #??????????## g# #????? | | ??????# #?????????? #gg*# "T" #????? | | ??????# #???????????+ ka/ """ #????? | | ??????# #???????????# !# #????? | | ####### ########???## ^^####+###????? | | ##### ### ##?????? | | ############ #?????? | | ???????????# #?????? | | ???????????# """ #?????? | | ???????????# [ """ ##?????? | | ???????????##### """ ###### #??????? | | ???????????##### [% #????# #??????? | | ??????????##!!## ! #????# #??????? | | ??????????#! "" #????#+#??????? | | ??????????#! Y" #?????????????? | | ??????????# "" #?????????????? | | ??????????# #?????????????? | +----------------------------------------------------+ Best States ------------- Heat Dissipation 25 Energy Generation 10 Energy Capacity 250 Matter Stores 300 Matter Capacity 300 Sight Range 16 Terrain Scan Density 10 Weapon Shielding 33 Evasion (%) 40 Recoil Reduction 2 Item Schematics ----------------- None Robot Schematics ------------------ None Fabricated ------------ Nothing Alien Tech Used ----------------- None Achievements -------------- None Challenges ------------ None Game ------ Seed AssembledIonicExpander Manual? 0 Play Time 00:09:10 Cumulative 85.2 hours Start 2020.06.09 @ 14:31:29 End 2020.06.09 @ 14:36:14 Sessions 1 Manual Loads 0 Difficulty Rogue Special Mode None Game No. 106 Rogue 106 Adventurer 0 Explorer 0 Win Type - Total 2 Types 2/0/0/0/0/0/0 Lore% 65 Gallery% 58 Achievement% 50 Wizard Run 0 Options --------- ASCII 0 Keyboard 0 Movement Mouse Keybinds 0 Fullscreen 2 Font 18/SmallcapsGlow Map View 76x50 Tactical HUD 1 Map Filters NONE Filters NONE Steam 1 RUN: 11f908b5-9476-4959-ab3d-3b0dbe6924ff